fUST/lending_fUST_20250316
["ID","MTS","AMOUNT","RATE_DAILY","PERIOD"]
[356192991,1742056247635,-500.0,8.493e-05,2]
[356192992,1742056247645,-601.35,8.493e-05,2]
[356192993,1742056247655,-522.93,8.493e-05,2]
[356192994,1742056247665,-500.0,8.493e-05,2]
[356192995,1742056247674,-500.0,8.493e-05,2]
[356192996,1742056247684,-278.8,8.493e-05,2]
[356192997,1742056247694,-500.0,8.493e-05,2]
[356192998,1742056247704,-1295.0,8.493e-05,2]
[356192999,1742056247714,-500.0,8.493e-05,2]
[356193000,1742056247723,-4687.79623449,8.493e-05,2]
[356193001,1742056272461,469.34004383,0.00011,6]
[356193002,1742056440655,3000.0,0.00011,6]
[356193028,1742057432462,-500.0,8.118e-05,2]
[356193029,1742057432472,-75.48929,8.118e-05,2]
[356193030,1742057432516,-430.29722802,8.118e-05,2]
[356193031,1742057432526,-300.0,8.118e-05,2]
[356193032,1742057432535,-1759.91261949,8.119e-05,2]
[356193033,1742057432546,-3279.3351506,8.119e-05,2]
[356193082,1742057445966,-541.94428527,8.119e-05,2]
[356193083,1742057445978,-4078.01384002,8.119e-05,2]
[356193085,1742057759347,53785.9709399,7.181e-05,2]
[356193087,1742057973131,500.0,7.124e-05,2]
[356193088,1742058250250,3000.0,0.00011,6]
[356193089,1742058577346,-456.35,0.00015702,120]
[356193090,1742058603308,24715.68,7.397e-05,2]
[356193091,1742058625484,-0.00971567,0.00015702,120]
[356193092,1742058625535,-499.0,0.0002,120]
[356193093,1742058625601,-0.00971567,0.0002,120]
[356193094,1742058625652,-499.0,0.0002,120]
[356193095,1742058625686,-9001.98056866,0.0002,120]
[356193127,1742058632414,-300.0,8.017e-05,2]
[356193128,1742058632424,-198.55785535,8.018e-05,2]
[356193129,1742058632434,-4326.43565378,8.018e-05,2]
[356193130,1742058632443,-500.0,8.018e-05,2]
[356193131,1742058632453,-500.0,8.018e-05,2]
[356193132,1742058632462,-500.0,8.018e-05,2]
[356193133,1742058632472,-500.0,8.018e-05,2]
[356193134,1742058632482,-500.0,8.018e-05,2]
[356193135,1742058632491,-500.0,8.018e-05,2]
[356193136,1742058632501,-575.0,8.018e-05,2]
[356193137,1742058632511,-500.0,8.018e-05,2]
[356193138,1742058632521,-500.0,8.018e-05,2]
[356193139,1742058632531,-500.0,8.018e-05,2]
[356193140,1742058632540,-500.0,8.018e-05,2]
[356193141,1742058632551,-500.0,8.018e-05,2]
[356193142,1742058632562,-49638.1189744,8.019e-05,2]
[356193143,1742058632571,-399.0,8.05e-05,2]
[356193144,1742058632581,-540.0,8.132e-05,2]
[356193145,1742058632591,-1924.0,8.132e-05,2]
[356193146,1742058632600,-2275.0,8.132e-05,2]
[356193147,1742058632610,-268.42864852,8.132e-05,2]
[356193148,1742058632620,-234.9731574,8.214e-05,2]
[356193150,1742058632630,-500.0,8.218e-05,2]
[356193151,1742058632640,-204.05056262,8.218e-05,2]
[356193152,1742058632650,-500.0,8.219e-05,2]
[356193153,1742058632660,-500.0,8.219e-05,2]
[356193154,1742058632670,-408.93437889,8.219e-05,2]
[356193155,1742058632679,-500.0,8.219e-05,2]
[356193156,1742058632689,-500.0,8.219e-05,2]
[356193157,1742058632698,-500.0,8.219e-05,2]
[356193158,1742058632708,-500.0,8.219e-05,2]
[356193159,1742058632718,-500.0,8.219e-05,2]
[356193160,1742058632727,-500.0,8.219e-05,2]
[356193161,1742058632736,-500.0,8.219e-05,2]
[356193162,1742058632746,-500.0,8.219e-05,2]
[356193163,1742058632756,-500.0,8.219e-05,2]
[356193164,1742058632766,-500.0,8.219e-05,2]
[356193165,1742058632776,-500.0,8.219e-05,2]
[356193166,1742058632785,-500.0,8.219e-05,2]
[356193167,1742058632795,-500.0,8.219e-05,2]
[356193168,1742058632804,-151.0,8.219e-05,2]
[356193169,1742058632813,-151.0,8.219e-05,2]
[356193170,1742058632823,-151.0,8.219e-05,2]
[356193171,1742058632833,-151.0,8.219e-05,2]
[356193172,1742058632842,-151.0,8.219e-05,2]
[356193173,1742058632852,-500.0,8.219e-05,2]
[356193174,1742058632861,-151.0,8.219e-05,2]
[356193175,1742058632871,-151.0,8.219e-05,2]
[356193176,1742058632880,-151.0,8.219e-05,2]
[356193177,1742058632890,-151.0,8.219e-05,2]
[356193178,1742058632900,-151.0,8.219e-05,2]
[356193179,1742058632910,-151.0,8.219e-05,2]
[356193180,1742058632920,-274.390409,8.219e-05,2]
[356193181,1742058632931,-626.63272713,8.219e-05,2]
[356193182,1742058632941,-500.0,8.219e-05,2]
[356193183,1742058632951,-505.93163436,8.219e-05,2]
[356193184,1742058632961,-535.75642959,8.219e-05,2]
[356193185,1742058632970,-500.0,8.219e-05,2]
[356193186,1742058632980,-500.0,8.219e-05,2]
[356193187,1742058632991,-215.7202819,8.219e-05,2]
[356193188,1742058633001,-500.0,8.219e-05,2]
[356193189,1742058633011,-500.0,8.219e-05,2]
[356193190,1742058633021,-500.0,8.219e-05,2]
[356193191,1742058633031,-500.0,8.219e-05,2]
[356193192,1742058633041,-502.42842976,8.219e-05,2]
[356193193,1742058633052,-500.0,8.219e-05,2]
[356193194,1742058633062,-500.0,8.219e-05,2]
[356193195,1742058633072,-500.0,8.219e-05,2]
[356193196,1742058633083,-500.0,8.219e-05,2]
[356193197,1742058633096,-500.0,8.219e-05,2]
[356193198,1742058633106,-500.0,8.219e-05,2]
[356193199,1742058633115,-500.0,8.219e-05,2]
[356193200,1742058633125,-500.0,8.219e-05,2]
[356193201,1742058633136,-500.0,8.219e-05,2]
[356193202,1742058633146,-500.0,8.219e-05,2]
[356193203,1742058633156,-500.0,8.219e-05,2]
[356193204,1742058633165,-500.0,8.219e-05,2]
[356193205,1742058633176,-500.0,8.219e-05,2]
[356193206,1742058633186,-500.0,8.219e-05,2]
[356193207,1742058633195,-500.0,8.219e-05,2]
[356193208,1742058633205,-500.0,8.219e-05,2]
[356193209,1742058633215,-319.63674247,8.219e-05,2]
[356193210,1742058633224,-500.0,8.219e-05,2]
[356193211,1742058633234,-546.45483823,8.219e-05,2]
[356193212,1742058633243,-500.0,8.219e-05,2]
[356193213,1742058633253,-500.0,8.219e-05,2]
[356193214,1742058633263,-508.94983125,8.219e-05,2]
[356193215,1742058633273,-500.0,8.219e-05,2]
[356193216,1742058633282,-500.0,8.219e-05,2]
[356193217,1742058633292,-502.60592843,8.219e-05,2]
[356193218,1742058633302,-500.0,8.219e-05,2]
[356193219,1742058633312,-500.0,8.219e-05,2]
[356193220,1742058633321,-505.18057988,8.219e-05,2]
[356193221,1742058633331,-485.47409865,8.219e-05,2]
[356193222,1742058633341,-500.0,8.219e-05,2]
[356193223,1742058633350,-500.0,8.219e-05,2]
[356193224,1742058633361,-521.47,8.219e-05,2]
[356193225,1742058633370,-605.06,8.219e-05,2]
[356193226,1742058633379,-541.75,8.219e-05,2]
[356193227,1742058633388,-500.0,8.219e-05,2]
[356193228,1742058633397,-500.0,8.219e-05,2]
[356193229,1742058633407,-500.0,8.219e-05,2]
[356193230,1742058633416,-500.0,8.219e-05,2]
[356193231,1742058633425,-506.8799592,8.219e-05,2]
[356193232,1742058633435,-500.0,8.219e-05,2]
[356193233,1742058633445,-500.0,8.219e-05,2]
[356193234,1742058633455,-500.0,8.219e-05,2]
[356193235,1742058633464,-500.0,8.219e-05,2]
[356193236,1742058633473,-500.0,8.219e-05,2]
[356193237,1742058633483,-510.33015191,8.219e-05,2]
[356193238,1742058633492,-515.95901741,8.219e-05,2]
[356193239,1742058633503,-500.0,8.219e-05,2]
[356193240,1742058633513,-500.0,8.219e-05,2]
[356193241,1742058633524,-500.0,8.219e-05,2]
[356193242,1742058633534,-500.0,8.219e-05,2]
[356193243,1742058633544,-500.0,8.219e-05,2]
[356193244,1742058633554,-500.0,8.219e-05,2]
[356193245,1742058633564,-500.0,8.219e-05,2]
[356193246,1742058633573,-500.0,8.219e-05,2]
[356193247,1742058633583,-500.0,8.219e-05,2]
[356193248,1742058633593,-500.0,8.219e-05,2]
[356193249,1742058633603,-543.78596001,8.219e-05,2]
[356193250,1742058633612,-500.0,8.219e-05,2]
[356193251,1742058633622,-500.0,8.219e-05,2]
[356193252,1742058633631,-500.0,8.219e-05,2]
[356193253,1742058633642,-500.0,8.219e-05,2]
[356193254,1742058633651,-71.13110001,8.219e-05,2]
[356193255,1742058633670,-444.30592739,8.219e-05,2]
[356193256,1742058633678,-500.0,8.219e-05,2]
[356193257,1742058633688,-537.45473057,8.219e-05,2]
[356193258,1742058633700,-341.63877857,8.219e-05,2]
[356193259,1742058633711,-107.05649086,8.219e-05,2]
[356193260,1742058633722,-638.56,8.219e-05,2]
[356193261,1742058633731,-500.0,8.219e-05,2]
[356193262,1742058633741,-500.0,8.219e-05,2]
[356193263,1742058633750,-500.0,8.219e-05,2]
[356193264,1742058633760,-500.0,8.219e-05,2]
[356193265,1742058633770,-500.0,8.219e-05,2]
[356193266,1742058633780,-500.0,8.219e-05,2]
[356193267,1742058633791,-500.0,8.219e-05,2]
[356193268,1742058633801,-565.73871807,8.219e-05,2]
[356193269,1742058633812,-500.0,8.219e-05,2]
[356193270,1742058633822,-500.0,8.219e-05,2]
[356193271,1742058633831,-500.0,8.219e-05,2]
[356193272,1742058633841,-500.0,8.219e-05,2]
[356193273,1742058633850,-500.0,8.219e-05,2]
[356193274,1742058633860,-500.0,8.219e-05,2]
[356193275,1742058633869,-500.0,8.219e-05,2]
[356193276,1742058633879,-500.0,8.219e-05,2]
[356193277,1742058633889,-500.0,8.219e-05,2]
[356193278,1742058633899,-778.14,8.219e-05,2]
[356193279,1742058633909,-500.0,8.219e-05,2]
[356193280,1742058633919,-556.72500279,8.219e-05,2]
[356193281,1742058633929,-500.0,8.219e-05,2]
[356193282,1742058633939,-500.0,8.219e-05,2]
[356193283,1742058633950,-500.0,8.219e-05,2]
[356193284,1742058633959,-886.57,8.219e-05,2]
[356193285,1742058633969,-151.0,8.219e-05,2]
[356193286,1742058633979,-500.0,8.219e-05,2]
[356193287,1742058633988,-500.0,8.219e-05,2]
[356193288,1742058633998,-500.0,8.219e-05,2]
[356193289,1742058634008,-500.0,8.219e-05,2]
[356193290,1742058634018,-1389.95,8.219e-05,2]
[356193291,1742058634028,-500.0,8.219e-05,2]
[356193292,1742058634037,-500.0,8.219e-05,2]
[356193293,1742058634047,-500.0,8.219e-05,2]
[356193294,1742058634057,-500.0,8.219e-05,2]
[356193295,1742058634067,-500.0,8.219e-05,2]
[356193296,1742058634078,-500.0,8.219e-05,2]
[356193297,1742058634088,-500.0,8.219e-05,2]
[356193298,1742058634102,-500.0,8.219e-05,2]
[356193299,1742058634112,-500.0,8.219e-05,2]
[356193300,1742058634121,-500.0,8.219e-05,2]
[356193301,1742058634131,-595.18076722,8.219e-05,2]
[356193302,1742058634141,-500.0,8.219e-05,2]
[356193303,1742058634151,-500.0,8.219e-05,2]
[356193304,1742058634160,-500.0,8.219e-05,2]
[356193305,1742058634171,-500.0,8.219e-05,2]
[356193306,1742058634182,-500.0,8.219e-05,2]
[356193307,1742058634192,-500.0,8.219e-05,2]
[356193308,1742058634201,-847.72,8.219e-05,2]
[356193309,1742058634211,-500.0,8.219e-05,2]
[356193310,1742058634220,-500.0,8.219e-05,2]
[356193311,1742058634230,-500.0,8.219e-05,2]
[356193312,1742058634239,-500.0,8.219e-05,2]
[356193313,1742058634248,-500.0,8.219e-05,2]
[356193314,1742058634258,-500.0,8.219e-05,2]
[356193315,1742058634268,-500.0,8.219e-05,2]
[356193316,1742058634278,-500.0,8.219e-05,2]
[356193317,1742058634289,-500.0,8.219e-05,2]
[356193318,1742058634299,-500.0,8.219e-05,2]
[356193319,1742058634309,-956.02,8.219e-05,2]
[356193320,1742058634319,-791.55,8.219e-05,2]
[356193321,1742058634329,-500.0,8.219e-05,2]
[356193322,1742058634339,-500.0,8.219e-05,2]
[356193323,1742058634349,-500.0,8.219e-05,2]
[356193324,1742058634359,-500.0,8.219e-05,2]
[356193325,1742058634369,-500.0,8.219e-05,2]
[356193326,1742058634379,-500.0,8.219e-05,2]
[356193327,1742058634389,-500.0,8.219e-05,2]
[356193328,1742058634399,-500.0,8.219e-05,2]
[356193329,1742058634409,-514.05135227,8.219e-05,2]
[356193330,1742058634418,-500.0,8.219e-05,2]
[356193331,1742058634428,-500.0,8.219e-05,2]
[356193332,1742058634437,-500.0,8.219e-05,2]
[356193333,1742058634447,-500.0,8.219e-05,2]
[356193334,1742058634457,-543.92691264,8.219e-05,2]
[356193335,1742058634467,-500.0,8.219e-05,2]
[356193336,1742058634477,-500.0,8.219e-05,2]
[356193337,1742058634486,-500.0,8.219e-05,2]
[356193338,1742058634495,-500.0,8.219e-05,2]
[356193339,1742058634505,-812.88,8.219e-05,2]
[356193340,1742058634515,-980.99,8.219e-05,2]
[356193341,1742058634525,-500.0,8.219e-05,2]
[356193342,1742058634535,-500.0,8.219e-05,2]
[356193343,1742058634545,-500.0,8.219e-05,2]
[356193344,1742058634555,-500.0,8.219e-05,2]
[356193345,1742058634564,-500.0,8.219e-05,2]
[356193346,1742058634574,-500.0,8.219e-05,2]
[356193347,1742058634591,-500.0,8.219e-05,2]
[356193348,1742058634605,-529.72,8.219e-05,2]
[356193349,1742058634615,-500.0,8.219e-05,2]
[356193350,1742058634625,-500.0,8.219e-05,2]
[356193351,1742058634635,-583.53,8.219e-05,2]
[356193352,1742058634645,-500.0,8.219e-05,2]
[356193353,1742058634655,-560.89,8.219e-05,2]
[356193354,1742058634665,-500.0,8.219e-05,2]
[356193355,1742058634675,-592.91,8.219e-05,2]
[356193356,1742058634684,-513.4260612,8.219e-05,2]
[356193357,1742058634693,-518.8,8.219e-05,2]
[356193358,1742058634703,-509.71184812,8.219e-05,2]
[356193359,1742058634713,-500.0,8.219e-05,2]
[356193360,1742058634722,-500.0,8.219e-05,2]
[356193361,1742058634732,-482.54640646,8.219e-05,2]
[356193362,1742058634742,-500.0,8.219e-05,2]
[356193363,1742058634752,-500.0,8.219e-05,2]
[356193364,1742058634762,-515.14312056,8.219e-05,2]
[356193365,1742058634772,-13029.97,8.219e-05,2]
[356193366,1742058634783,-500.0,8.219e-05,2]
[356193367,1742058634793,-500.0,8.219e-05,2]
[356193368,1742058634803,-1064.47,8.219e-05,2]
[356193369,1742058634813,-5830.01,8.219e-05,2]
[356193370,1742058634823,-500.0,8.219e-05,2]
[356193371,1742058634832,-500.0,8.219e-05,2]
[356193372,1742058634842,-500.0,8.219e-05,2]
[356193373,1742058634851,-500.0,8.219e-05,2]
[356193374,1742058634861,-500.0,8.219e-05,2]
[356193375,1742058634871,-500.0,8.219e-05,2]
[356193376,1742058634881,-500.0,8.219e-05,2]
[356193377,1742058634891,-500.0,8.219e-05,2]
[356193378,1742058634901,-3531.92,8.219e-05,2]
[356193379,1742058634910,-500.0,8.219e-05,2]
[356193380,1742058634920,-500.0,8.219e-05,2]
[356193381,1742058634930,-500.0,8.219e-05,2]
[356193382,1742058634941,-500.0,8.219e-05,2]
[356193383,1742058634952,-500.0,8.219e-05,2]
[356193384,1742058634962,-1227.36,8.219e-05,2]
[356193385,1742058634972,-528.4574453,8.219e-05,2]
[356193386,1742058634981,-500.0,8.219e-05,2]
[356193387,1742058634991,-500.0,8.219e-05,2]
[356193388,1742058635001,-500.0,8.219e-05,2]
[356193389,1742058635013,-500.0,8.219e-05,2]
[356193390,1742058635023,-679.88,8.219e-05,2]
[356193391,1742058635034,-500.0,8.219e-05,2]
[356193392,1742058635044,-500.0,8.219e-05,2]
[356193393,1742058635054,-500.0,8.219e-05,2]
[356193394,1742058635064,-500.0,8.219e-05,2]
[356193395,1742058635074,-500.0,8.219e-05,2]
[356193396,1742058635083,-500.0,8.219e-05,2]
[356193397,1742058635094,-7095.98,8.219e-05,2]
[356193398,1742058635108,-4122.78,8.219e-05,2]
[356193399,1742058635118,-500.0,8.219e-05,2]
[356193400,1742058635128,-500.0,8.219e-05,2]
[356193401,1742058635139,-500.0,8.219e-05,2]
[356193402,1742058635148,-500.0,8.219e-05,2]
[356193403,1742058635159,-380.69,8.219e-05,2]
[356193404,1742058635168,-267.44815675,8.219e-05,2]
[356193405,1742058635179,-500.0,8.219e-05,2]
[356193406,1742058635189,-500.0,8.219e-05,2]
[356193407,1742058635198,-184.41729203,8.219e-05,2]
[356193408,1742058635208,-500.0,8.219e-05,2]
[356193409,1742058635218,-619.03,8.219e-05,2]
[356193410,1742058635228,-500.0,8.219e-05,2]
[356193411,1742058635238,-500.0,8.219e-05,2]
[356193412,1742058635248,-7887.73,8.219e-05,2]
[356193413,1742058635258,-500.0,8.219e-05,2]
[356193414,1742058635267,-4878.64,8.219e-05,2]
[356193415,1742058635277,-500.0,8.219e-05,2]
[356193416,1742058635287,-1613.78,8.219e-05,2]
[356193417,1742058635296,-500.0,8.219e-05,2]
[356193418,1742058635307,-500.0,8.219e-05,2]
[356193419,1742058635317,-500.0,8.219e-05,2]
[356193420,1742058635327,-403.94819184,8.219e-05,2]
[356193421,1742058635337,-322.56649015,8.219e-05,2]
[356193422,1742058635346,-500.0,8.219e-05,2]
[356193423,1742058635356,-500.0,8.219e-05,2]
[356193424,1742058635624,-500.0,8.219e-05,2]
[356193425,1742058635634,-500.0,8.219e-05,2]
[356193426,1742058635643,-500.0,8.219e-05,2]
[356193427,1742058635653,-500.0,8.219e-05,2]
[356193428,1742058635662,-593.28,8.219e-05,2]
[356193429,1742058635672,-500.0,8.219e-05,2]
[356193430,1742058635682,-1610.72,8.219e-05,2]
[356193431,1742058635692,-500.0,8.219e-05,2]
[356193432,1742058635701,-500.0,8.219e-05,2]
[356193433,1742058635711,-500.0,8.219e-05,2]
[356193434,1742058635720,-500.0,8.219e-05,2]
[356193435,1742058635730,-500.0,8.219e-05,2]
[356193436,1742058635739,-500.0,8.219e-05,2]
[356193437,1742058635749,-500.0,8.219e-05,2]
[356193438,1742058635758,-500.0,8.219e-05,2]
[356193439,1742058635768,-1348.04,8.219e-05,2]
[356193440,1742058635778,-500.0,8.219e-05,2]
[356193441,1742058635787,-500.0,8.219e-05,2]
[356193442,1742058635797,-500.0,8.219e-05,2]
[356193443,1742058635806,-500.0,8.219e-05,2]
[356193444,1742058635816,-500.0,8.219e-05,2]
[356193445,1742058635825,-649.92,8.219e-05,2]
[356193446,1742058635834,-447.63712444,8.219e-05,2]
[356193447,1742058635844,-500.0,8.219e-05,2]
[356193448,1742058635854,-500.0,8.219e-05,2]
[356193449,1742058635863,-500.61077,8.219e-05,2]
[356193450,1742058635873,-275.99958645,8.219e-05,2]
[356193451,1742058635882,-500.0,8.219e-05,2]
[356193452,1742058635892,-500.0,8.219e-05,2]
[356193453,1742058635902,-500.0,8.219e-05,2]
[356193454,1742058635911,-237.82570446,8.219e-05,2]
[356193455,1742058635920,-4692.11,8.219e-05,2]
[356193456,1742058635929,-500.0,8.219e-05,2]
[356193457,1742058635939,-12547.81,8.219e-05,2]
[356193458,1742058635948,-500.0,8.219e-05,2]
[356193459,1742058635958,-275.65876131,8.219e-05,2]
[356193460,1742058635967,-954.23,8.219e-05,2]
[356193461,1742058635976,-500.0,8.219e-05,2]
[356193462,1742058635986,-7062.12,8.219e-05,2]
[356193463,1742058635995,-500.0,8.219e-05,2]
[356193464,1742058636005,-606.36,8.219e-05,2]
[356193465,1742058636014,-3669.45,8.219e-05,2]
[356193466,1742058636024,-500.0,8.219e-05,2]
[356193467,1742058636034,-500.0,8.219e-05,2]
[356193468,1742058636043,-8836.87,8.219e-05,2]
[356193469,1742058636053,-933.72,8.219e-05,2]
[356193470,1742058636063,-500.0,8.219e-05,2]
[356193471,1742058636073,-500.0,8.219e-05,2]
[356193472,1742058636083,-1143.43,8.219e-05,2]
[356193473,1742058636097,-500.0,8.219e-05,2]
[356193474,1742058636107,-500.0,8.219e-05,2]
[356193475,1742058636116,-500.0,8.219e-05,2]
[356193476,1742058636126,-500.0,8.219e-05,2]
[356193477,1742058636136,-500.0,8.219e-05,2]
[356193478,1742058636145,-500.0,8.219e-05,2]
[356193479,1742058636155,-1371.4,8.219e-05,2]
[356193480,1742058636165,-500.0,8.219e-05,2]
[356193481,1742058636174,-500.0,8.219e-05,2]
[356193482,1742058636185,-500.0,8.219e-05,2]
[356193483,1742058636195,-2645.81,8.219e-05,2]
[356193484,1742058636205,-691.51,8.219e-05,2]
[356193485,1742058636215,-1757.22,8.219e-05,2]
[356193486,1742058636224,-3134.04,8.219e-05,2]
[356193487,1742058636233,-500.0,8.219e-05,2]
[356193488,1742058636243,-1402.5,8.219e-05,2]
[356193489,1742058636252,-500.0,8.219e-05,2]
[356193490,1742058636262,-500.0,8.219e-05,2]
[356193491,1742058636271,-500.0,8.219e-05,2]
[356193492,1742058636281,-500.0,8.219e-05,2]
[356193493,1742058636291,-4813.55,8.219e-05,2]
[356193494,1742058636300,-500.0,8.219e-05,2]
[356193495,1742058636310,-1356.93,8.219e-05,2]
[356193496,1742058636320,-500.0,8.219e-05,2]
[356193497,1742058636330,-500.0,8.219e-05,2]
[356193498,1742058636341,-2983.45,8.219e-05,2]
[356193499,1742058636350,-528.85,8.219e-05,2]
[356193500,1742058636359,-500.0,8.219e-05,2]
[356193501,1742058636369,-500.0,8.219e-05,2]
[356193502,1742058636378,-500.0,8.219e-05,2]
[356193503,1742058636388,-4856.6,8.219e-05,2]
[356193504,1742058636397,-517.62528467,8.219e-05,2]
[356193505,1742058636407,-574.79985077,8.219e-05,2]
[356193506,1742058636416,-500.0,8.219e-05,2]
[356193507,1742058636426,-500.0,8.219e-05,2]
[356193508,1742058636435,-500.0,8.219e-05,2]
[356193509,1742058636445,-10100.15,8.219e-05,2]
[356193510,1742058636454,-500.0,8.219e-05,2]
[356193511,1742058636464,-1056.15,8.219e-05,2]
[356193512,1742058636473,-500.0,8.219e-05,2]
[356193513,1742058636484,-500.0,8.219e-05,2]
[356193514,1742058636494,-739.31,8.219e-05,2]
[356193515,1742058636503,-500.0,8.219e-05,2]
[356193516,1742058636513,-500.0,8.219e-05,2]
[356193517,1742058636523,-631.26,8.219e-05,2]
[356193518,1742058636532,-524.21,8.219e-05,2]
[356193519,1742058636542,-500.0,8.219e-05,2]
[356193520,1742058636552,-510.40134383,8.219e-05,2]
[356193521,1742058636563,-541.0,8.219e-05,2]
[356193522,1742058636573,-613.17676095,8.219e-05,2]
[356193523,1742058636583,-584.19,8.219e-05,2]
[356193524,1742058636592,-500.0,8.219e-05,2]
[356193525,1742058636601,-2085.39,8.219e-05,2]
[356193526,1742058636610,-434.31579111,8.219e-05,2]
[356193527,1742058636620,-500.0,8.219e-05,2]
[356193528,1742058636631,-500.0,8.219e-05,2]
[356193529,1742058636640,-515.89818632,8.219e-05,2]
[356193530,1742058636650,-10928.28,8.219e-05,2]
[356193531,1742058636659,-500.0,8.219e-05,2]
[356193532,1742058636669,-500.0,8.219e-05,2]
[356193533,1742058636678,-501.09244364,8.219e-05,2]
[356193534,1742058636687,-500.0,8.219e-05,2]
[356193535,1742058636697,-1423.79,8.219e-05,2]
[356193536,1742058636707,-500.0,8.219e-05,2]
[356193537,1742058636717,-151.0,8.219e-05,2]
[356193538,1742058636727,-275.501808,8.219e-05,2]
[356193539,1742058636736,-4877.9222302,8.219e-05,2]
[356193540,1742058636746,-160.0,8.318e-05,2]
[356193541,1742058636755,-500.0,8.473e-05,2]
[356193542,1742058636764,-500.0,8.473e-05,2]
[356193543,1742058636774,-571.08097852,8.473e-05,2]
[356193544,1742058636783,-500.0,8.473e-05,2]
[356193545,1742058636796,-500.0,8.473e-05,2]
[356193546,1742058636806,-500.0,8.473e-05,2]
[356193547,1742058636815,-552.33168527,8.473e-05,2]
[356193548,1742058636825,-500.0,8.473e-05,2]
[356193549,1742058636835,-503.48350354,8.473e-05,2]
[356193550,1742058636844,-500.0,8.473e-05,2]
[356193551,1742058636854,-500.0,8.473e-05,2]
[356193552,1742058636865,-500.0,8.473e-05,2]
[356193553,1742058636874,-500.0,8.473e-05,2]
[356193554,1742058636883,-500.0,8.473e-05,2]
[356193555,1742058636893,-500.0,8.473e-05,2]
[356193556,1742058636904,-500.0,8.473e-05,2]
[356193557,1742058636916,-500.0,8.473e-05,2]
[356193558,1742058636926,-500.0,8.473e-05,2]
[356193559,1742058636937,-500.0,8.473e-05,2]
[356193560,1742058636947,-500.0,8.473e-05,2]
[356193561,1742058636957,-500.0,8.473e-05,2]
[356193562,1742058636965,-500.0,8.473e-05,2]
[356193563,1742058636975,-500.0,8.473e-05,2]
[356193564,1742058636985,-500.0,8.473e-05,2]
[356193565,1742058636995,-500.0,8.473e-05,2]
[356193566,1742058637004,-500.0,8.473e-05,2]
[356193567,1742058637014,-500.0,8.473e-05,2]
[356193568,1742058637023,-152.11468781,8.473e-05,2]
[356193569,1742058637033,-189.90169851,8.473e-05,2]
[356193570,1742058637042,-500.0,8.473e-05,2]
[356193571,1742058637052,-500.0,8.473e-05,2]
[356193572,1742058637062,-500.0,8.473e-05,2]
[356193573,1742058637072,-500.0,8.473e-05,2]
[356193574,1742058637081,-500.02957228,8.493e-05,2]
[356193575,1742058637092,-500.0,8.493e-05,2]
[356193576,1742058637105,-515.74352816,8.493e-05,2]
[356193577,1742058637115,-500.0,8.493e-05,2]
[356193578,1742058637124,-500.0,8.493e-05,2]
[356193579,1742058637134,-500.0,8.493e-05,2]
[356193580,1742058637144,-500.0,8.493e-05,2]
[356193581,1742058637154,-500.0,8.493e-05,2]
[356193582,1742058637163,-500.0,8.493e-05,2]
[356193583,1742058637174,-500.0,8.493e-05,2]
[356193584,1742058637184,-500.0,8.493e-05,2]
[356193585,1742058637194,-500.0,8.493e-05,2]
[356193586,1742058637203,-500.0,8.493e-05,2]
[356193587,1742058637214,-500.0,8.493e-05,2]
[356193588,1742058637223,-500.0,8.493e-05,2]
[356193589,1742058637233,-500.0,8.493e-05,2]
[356193590,1742058637243,-500.0,8.493e-05,2]
[356193591,1742058637252,-500.0,8.493e-05,2]
[356193592,1742058637262,-500.0,8.493e-05,2]
[356193593,1742058637271,-500.0,8.493e-05,2]
[356193594,1742058637280,-500.0,8.493e-05,2]
[356193595,1742058637290,-500.0,8.493e-05,2]
[356193596,1742058637300,-500.0,8.493e-05,2]
[356193597,1742058637310,-500.0,8.493e-05,2]